Workbook

Sheet Registro
A1: TITULO | B1: ESTUDIO DE IMPACTO AMBIENTAL: PROCEDIMIENTO Y HERRAMIENTAS
A3: AUTORES | B3: ROBERTO PECHE GONZALEZ
B4: DOLORES ENCINAS MALAGON
B5: ZURIÑE GOMEZ DE BALUGERA LOPEZ DE ALDA
B6: MARIA ARRITOKIETA ORTUZAR IRAGORRI
A8: ISBN: | B8: 978-84-613-9696-2

Sheet 224-228
A1: nº de indicador: | B1: 224 | C1: función de transformación: | D1: CA=-0,0001*I^2+ 0,02*I | E1: 0<I<100
A2: Indicador: | B2: Lugares o monumentos histórico-artisticos equivalentes (interés bajo)
A3: fórmula del indicador
A4: unidad del indicador:
A5: rango de valores del indicador: | B5: 0 - 100 | C5: valor del indicador | D5: 50
A6: Tipo de indicador | B6: 2 (T=0,25) | C6: calidad ambiental | D6: =IF(D5<0,"valor del indicador fuera de rango",IF(D5<=100,-0.0001*(D5^2)+(0.02*D5),"valor del indicador fuera rango")) -> 0.750
A7: valor del indicador | B7: calidad ambiental | C7: representación de la función de transformación
A8: 0 | B8: =-0.0001*(A8^2)+(0.02*A8) -> 0.000
A9: 10 | B9: 0.190
A10: =+A9+5 -> 15 | B10: 0.278
A11: 20 | B11: 0.360
A12: 25 | B12: 0.438
A13: 30 | B13: 0.510
A14: 35 | B14: 0.578
A15: 40 | B15: 0.640
A16: 45 | B16: 0.698
A17: 50 | B17: 0.750
A18: 55 | B18: 0.798
A19: 60 | B19: 0.840
A20: 65 | B20: 0.878
A21: 70 | B21: 0.910
A22: 75 | B22: 0.938
A23: 80 | B23: 0.960
A24: 85 | B24: 0.978
A25: 90 | B25: 0.990
A26: 100 | B26: 1.000
A29: nº de indicador: | B29: 225 | C29: función de transformación: | D29: CA=0 | E29: 0<I<25
A30: Indicador: | B30: Lugares o monumentos histórico-artisticos equivalentes (interés medio) | D30: CA= -0,000107*I^2+0,0267*I-0,6 | E30: 25<I<100
A31: fórmula del indicador
A32: unidad del indicador:
A33: rango de valores del indicador: | B33: 0 - 100 | C33: valor del indicador | D33: 50
A34: Tipo de indicador | B34: 2 (T=0,25) | C34: calidad ambiental | D34: =IF(D33<0,"valor del indicador fuera de rango",IF(D33<=25,0,IF(D33<=100,(-0.000107*(D33^2))+(0.0267*D33)-0.6,"valor del indicador fuera rango"))) -> 0.468
A35: valor del indicador | B35: calidad ambiental | C35: representación de la función de transformación
A36: 0 | B36: 0.000
A37: 10 | B37: 0.000
A38: =+A37+5 -> 15 | B38: 0.000
A39: 20 | B39: 0.000
A40: 25 | B40: 0.000
A41: 30 | B41: =-0.000107*(A41^2)+(0.0267*(A41))-0.6 -> 0.105
A42: 35 | B42: 0.203
A43: 40 | B43: 0.297
A44: 45 | B44: 0.385
A45: 50 | B45: 0.468
A46: 55 | B46: 0.545
A47: 60 | B47: 0.617
A48: 65 | B48: 0.683
A49: 70 | B49: 0.745
A50: 75 | B50: 0.801
A51: 80 | B51: 0.851
A52: 85 | B52: 0.896
A53: 90 | B53: 0.936
A54: 100 | B54: 1.000
A57: nº de indicador: | B57: 226 | C57: función de transformación: | D57: CA=0 | E57: 0<I<50
A58: Indicador: | B58: Lugares o monumentos histórico-artisticos equivalentes (interés alto) | D58: CA= -0,0002*I^2+0,05*I-2 | E58: 50<I<100
A59: fórmula del indicador
A60: unidad del indicador:
A61: rango de valores del indicador: | B61: 0 - 100 | C61: valor del indicador | D61: 75
A62: Tipo de indicador | B62: 2 (T=0,25) | C62: calidad ambiental | D62: =IF(D61<0,"valor del indicador fuera de rango",IF(D61<=50,0,IF(D61<=100,(-0.0002*(D61^2))+(0.05*D61)-2,"valor del indicador fuera rango"))) -> 0.625
A63: valor del indicador | B63: calidad ambiental | C63: representación de la función de transformación
A64: 0 | B64: 0.000
A65: 10 | B65: 0.000
A66: =+A65+5 -> 15 | B66: 0.000
A67: 20 | B67: 0.000
A68: 25 | B68: 0.000
A69: 30 | B69: 0.000
A70: 35 | B70: 0.000
A71: 40 | B71: 0.000
A72: 45 | B72: 0.000
A73: 50 | B73: 0.000
A74: 55 | B74: =-0.0002*(A74^2)+(0.05*(A74))-2 -> 0.145
A75: 60 | B75: 0.280
A76: 65 | B76: 0.405
A77: 70 | B77: 0.520
A78: 75 | B78: 0.625
A79: 80 | B79: 0.720
A80: 85 | B80: 0.805
A81: 90 | B81: 0.880
A82: 100 | B82: 1.000
A85: nº de indicador: | B85: 227 | C85: función de transformación: | D85: CA=0,01I | E85: 0<I<100
A86: Indicador: | B86: Interés medio de los lugares o monumentos históricos y/o artísticos existentes (interés bajo)
A87: fórmula del indicador
A88: unidad del indicador:
A89: rango de valores del indicador: | B89: 0 - 100 | C89: valor del indicador | D89: 50
A90: Tipo de indicador | B90: 2 (T=0,25) | C90: calidad ambiental | D90: =IF(D89<0,"valor del indicador fuera de rango",IF(D89<=100,0.01*(D89),"valor del indicador fuera rango")) -> 0.500
A91: valor del indicador | B91: calidad ambiental | C91: representación de la función de transformación
A92: 0 | B92: =0.01*A92 -> 0.000
A93: 10 | B93: 0.100
A94: 20 | B94: 0.200
A95: 30 | B95: 0.300
A96: =+A95+5 -> 35 | B96: 0.350
A97: 40 | B97: 0.400
A98: 45 | B98: 0.450
A99: 50 | B99: 0.500
A100: 55 | B100: 0.550
A101: 60 | B101: 0.600
A102: 65 | B102: 0.650
A103: 70 | B103: 0.700
A104: 75 | B104: 0.750
A105: 80 | B105: 0.800
A106: 85 | B106: 0.850
A107: 90 | B107: 0.900
A108: 95 | B108: 0.950
A109: =+A108+5 -> 100 | B109: 1.000
A112: nº de indicador: | B112: 228 | C112: función de transformación: | D112: CA=0 | E112: 0<I<25
A113: Indicador: | B113: Interés medio de los lugares o monumentos históricos y/o artísticos existentes (interés alto) | D113: CA= 0,0133*I-0,333 | E113: 25<I<100
A114: fórmula del indicador | D114: CA=0 | E114: 0<I<25
A115: unidad del indicador:
A116: rango de valores del indicador: | B116: 0 - 100 | C116: valor del indicador | D116: 50
A117: Tipo de indicador | B117: 2 (T=0,25) | C117: calidad ambiental | D117: =IF(D116<0,"valor del indicador fuera de rango",IF(D116<=25,0,IF(D116<=100,(0.0133*(D116))-(0.333),"valor del indicador fuera rango"))) -> 0.332
A118: valor del indicador | B118: calidad ambiental | C118: representación de la función de transformación
A119: 0 | B119: 0.000
A120: =+A119+5 -> 5 | B120: 0.000
A121: 10 | B121: 0.000
A122: 15 | B122: 0.000
A123: 20 | B123: 0.000
A124: 25 | B124: 0.000
A125: 30 | B125: =0.0133*A125-0.333 -> 0.066
A126: 40 | B126: 0.199
A127: 50 | B127: 0.332
A128: 60 | B128: 0.465
A129: 65 | B129: 0.532
A130: 70 | B130: 0.598
A131: 75 | B131: 0.665
A132: 80 | B132: 0.731
A133: 85 | B133: 0.798
A134: 90 | B134: 0.864
A135: 95 | B135: 0.931
A136: 100 | B136: 0.997

Sheet 229-230
A1: nº de indicador: | B1: 229 | C1: función de transformación: | D1: CA=0 | E1: 0<x<1
A2: Indicador: | B2: Indice medio de calidad de los yacimientos arqueológicos (yacimentos terrestres) | D2: CA=(4,69E-02)x^2-(9,38E-0,2)x+2,97E-01 | E2: 1<x<5
A3: fórmula del indicador
A4: unidad del indicador:
A5: rango de valores del indicador: | B5: 0 - 5 | C5: valor del indicador | D5: 2
A6: Tipo de indicador | B6: 3 (T=0,50) | C6: calidad ambiental | D6: =IF(D5<0,"valor del indicador fuera de rango",IF(D5<=1,0,IF(D5<5,0.0469*(D5^2)-0.0938*(D5)+0.297,"valor del indicador fuera de rango"))) -> 0.297
A7: valor del indicador | B7: calidad ambiental | C7: representación de la función de transformación
A8: 0.0 | B8: 0.000
A9: =+A8+0.2 -> 0.2 | B9: 0.000
A10: =+A9+0.2 -> 0.4 | B10: 0.000
A11: 0.6 | B11: 0.000
A12: 0.8 | B12: 0.000
A13: 1.0 | B13: 0.000
A14: 1.2 | B14: =(0.0469)*A14^2-(0.0938)*A14+0.297 -> 0.252
A15: 1.4 | B15: 0.258
A16: 1.6 | B16: 0.267
A17: 1.8 | B17: 0.280
A18: 2.0 | B18: 0.297
A19: 2.2 | B19: 0.318
A20: 2.4 | B20: 0.342
A21: 2.6 | B21: 0.370
A22: 2.8 | B22: 0.402
A23: 3.0 | B23: 0.438
A24: 3.2 | B24: 0.477
A25: 3.4 | B25: 0.520
A26: 3.6 | B26: 0.567
A27: 3.8 | B27: 0.618
A28: 4.0 | B28: 0.672
A29: 4.2 | B29: 0.730
A30: 4.4 | B30: 0.792
A31: 4.6 | B31: 0.858
A32: 4.8 | B32: 0.927
A33: 5.0 | B33: 1.001
A36: nº de indicador: | B36: 230 | C36: función de transformación: | D36: CA=(3E-02)x^2+(2,5E-01) | E36: 0<x<5
A37: Indicador: | B37: Indice medio de calidad de los yacimientos arqueológicos (yacimentos marítimos)
A38: fórmula del indicador
A39: unidad del indicador:
A40: rango de valores del indicador: | B40: 0 - 5 | C40: valor del indicador | D40: 0.6
A41: Tipo de indicador | B41: 3 (T=0,50) | C41: calidad ambiental | D41: =IF(D40<0,"valor del indicador fuera de rango",IF(D40<=5,0.03*(D40^2)+0.25,IF(D40>5,"valor del indicador fuera de rango"))) -> 0.261
A42: valor del indicador | B42: calidad ambiental | C42: representación de la función de transformación
A43: 0.0 | B43: =0.03*(A43^2)+(0.25) -> 0.250
A44: =+A43+0.2 -> 0.2 | B44: 0.251
A45: =+A44+0.2 -> 0.4 | B45: 0.255
A46: 0.6 | B46: 0.261
A47: 0.8 | B47: 0.269
A48: 1.0 | B48: 0.280
A49: 1.2 | B49: 0.293
A50: 1.4 | B50: 0.309
A51: 1.6 | B51: 0.327
A52: 1.8 | B52: 0.347
A53: 2.0 | B53: 0.370
A54: 2.2 | B54: 0.395
A55: 2.4 | B55: 0.423
A56: 2.6 | B56: 0.453
A57: 2.8 | B57: 0.485
A58: 3.0 | B58: 0.520
A59: 3.2 | B59: 0.557
A60: 3.4 | B60: 0.597
A61: 3.6 | B61: 0.639
A62: 3.8 | B62: 0.683
A63: 4.0 | B63: 0.730
A64: 4.2 | B64: 0.779
A65: 4.4 | B65: 0.831
A66: 4.6 | B66: 0.885
A67: 4.8 | B67: 0.941
A68: 5.0 | B68: 1.000

Sheet 231
A1: nº de indicador: | B1: 231 | C1: función de transformación: | D1: CA=(2E-02)x^2+(1E-01)x | E1: 0<x<5
A2: Indicador: | B2: Grado de conservación de las estructuras y edificaciones tradicionales
A3: fórmula del indicador
A4: unidad del indicador:
A5: rango de valores del indicador: | B5: 0 - 5 | C5: valor del indicador | D5: 0.5
A6: Tipo de indicador | B6: 3 (T=0,50) | C6: calidad ambiental | D6: =IF(D5<0,"valor del indicador fuera de rango",IF(D5<=5,0.02*(D5^2)+0.1*D5,IF(D5>5,"valor del indicador fuera de rango"))) -> 0.055
A7: valor del indicador | B7: calidad ambiental | C7: representación de la función de transformación
A8: 0.0 | B8: =0.02*(A8^2)+0.1*A8 -> 0.000
A9: 0.5 | B9: 0.055
A10: 1.0 | B10: 0.120
A11: 1.5 | B11: 0.195
A12: 1.8 | B12: 0.245
A13: =+A12+0.2 -> 2.0 | B13: 0.280
A14: 2.2 | B14: 0.317
A15: 2.4 | B15: 0.355
A16: 2.6 | B16: 0.395
A17: 2.8 | B17: 0.437
A18: 3.0 | B18: 0.480
A19: 3.2 | B19: 0.525
A20: 3.4 | B20: 0.571
A21: 3.6 | B21: 0.619
A22: 3.8 | B22: 0.669
A23: 4.0 | B23: 0.720
A24: 4.2 | B24: 0.773
A25: 4.4 | B25: 0.827
A26: 4.6 | B26: 0.883
A27: 4.8 | B27: 0.941
A28: 5.0 | B28: 1.000
